fUST/lending_fUST_20250608
["ID","MTS","AMOUNT","RATE_DAILY","PERIOD"]
[364936111,1749319766070,-500.0,0.00019627,2]
[364936112,1749319766090,-500.0,0.00019627,2]
[364936113,1749319766112,-500.0,0.00019627,2]
[364936114,1749319766132,-500.0,0.00019627,2]
[364936115,1749319766153,-500.0,0.00019627,2]
[364936116,1749319766175,-500.0,0.00019627,2]
[364936117,1749319766196,-500.0,0.00019627,2]
[364936118,1749319766217,-500.0,0.00019627,2]
[364936119,1749319766238,-500.0,0.00019627,2]
[364936120,1749319766259,-500.0,0.00019627,2]
[364936121,1749319766281,-500.0,0.00019627,2]
[364936122,1749319766305,-500.0,0.00019627,2]
[364936123,1749319766328,-500.0,0.00019627,2]
[364936124,1749319766352,-500.0,0.00019627,2]
[364936125,1749319766373,-500.0,0.00019627,2]
[364936126,1749319766394,-500.0,0.00019627,2]
[364936127,1749319766415,-500.0,0.00019627,2]
[364936128,1749319766439,-500.0,0.00019627,2]
[364936129,1749319766462,-500.0,0.00019627,2]
[364936130,1749319766482,-500.0,0.00019627,2]
[364936131,1749319766505,-500.0,0.00019627,2]
[364936132,1749319766528,-500.0,0.00019627,2]
[364936133,1749319766551,-500.0,0.00019627,2]
[364936134,1749319766572,-500.0,0.00019627,2]
[364936135,1749319766592,-432.9499886,0.00019627,2]
[364936136,1749319766613,-500.0,0.00019627,2]
[364936137,1749319766634,-500.0,0.00019627,2]
[364936138,1749319766659,-500.0,0.00019627,2]
[364936139,1749319766680,-500.0,0.00019627,2]
[364936140,1749319766702,-500.0,0.00019627,2]
[364936141,1749319766725,-500.0,0.00019627,2]
[364936142,1749319766747,-222.28073167,0.00019627,2]
[364936143,1749319766769,-500.0,0.00019627,2]
[364936144,1749319766791,-500.0,0.00019627,2]
[364936145,1749319766814,-500.0,0.00019627,2]
[364936146,1749319766835,-500.0,0.00019627,2]
[364936147,1749319766856,-500.0,0.00019627,2]
[364936148,1749319766878,-500.0,0.00019627,2]
[364936149,1749319766901,-500.0,0.00019627,2]
[364936150,1749319766923,-500.0,0.00019627,2]
[364936151,1749319766945,-500.0,0.00019627,2]
[364936152,1749319766968,-500.0,0.00019627,2]
[364936153,1749319766991,-500.0,0.00019627,2]
[364936154,1749319767012,-500.0,0.00019627,2]
[364936155,1749319767034,-500.0,0.00019627,2]
[364936156,1749319767055,-500.0,0.00019627,2]
[364936157,1749319767077,-500.0,0.00019627,2]
[364936158,1749319767099,-500.0,0.00019627,2]
[364936159,1749319767121,-500.0,0.00019627,2]
[364936160,1749319767144,-500.0,0.00019627,2]
[364936161,1749319767165,-500.0,0.00019627,2]
[364936162,1749319767186,-500.0,0.00019627,2]
[364936163,1749319767208,-500.0,0.00019627,2]
[364936164,1749319767230,-500.0,0.00019627,2]
[364936165,1749319767251,-500.0,0.00019627,2]
[364936166,1749319767273,-500.0,0.00019627,2]
[364936167,1749319767295,-500.0,0.00019627,2]
[364936168,1749319767317,-500.0,0.00019627,2]
[364936169,1749319767337,-500.0,0.00019627,2]
[364936170,1749319767358,-593.98037716,0.00019627,2]
[364936171,1749319767379,-500.0,0.00019627,2]
[364936172,1749319767400,-500.0,0.00019627,2]
[364936173,1749319767422,-500.0,0.00019627,2]
[364936174,1749319767444,-500.0,0.00019627,2]
[364936175,1749319767466,-500.0,0.00019627,2]
[364936176,1749319767487,-500.0,0.00019627,2]
[364936177,1749319767510,-500.0,0.00019627,2]
[364936178,1749319767532,-500.0,0.00019627,2]
[364936179,1749319767552,-500.0,0.00019627,2]
[364936180,1749319767573,-500.0,0.00019627,2]
[364936181,1749319767598,-500.0,0.00019627,2]
[364936182,1749319767621,-500.0,0.00019627,2]
[364936183,1749319767643,-500.0,0.00019627,2]
[364936184,1749319767665,-500.0,0.00019627,2]
[364936185,1749319767686,-500.0,0.00019627,2]
[364936186,1749319767708,-500.0,0.00019627,2]
[364936187,1749319767730,-500.0,0.00019627,2]
[364936188,1749319767751,-500.0,0.00019627,2]
[364936189,1749319767771,-500.0,0.00019627,2]
[364936190,1749319767792,-500.0,0.00019627,2]
[364936191,1749319767816,-986.18471216,0.00019627,2]
[364936192,1749319767837,-986.18471216,0.00019627,2]
[364936193,1749319767860,-986.18471216,0.00019627,2]
[364936194,1749319767881,-986.18471216,0.00019627,2]
[364936195,1749319767903,-986.18471216,0.00019627,2]
[364936196,1749319767924,-986.18471216,0.00019627,2]
[364936197,1749319767946,-986.18471216,0.00019627,2]
[364936198,1749319767970,-986.18471216,0.00019627,2]
[364936199,1749319768125,-986.18471216,0.00019627,2]
[364936200,1749319768149,-986.18471216,0.00019627,2]
[364936201,1749319768172,-986.18471216,0.00019627,2]
[364936202,1749319768195,-986.18471216,0.00019627,2]
[364936203,1749319768217,-986.18471216,0.00019627,2]
[364936204,1749319768238,-986.18471216,0.00019627,2]
[364936205,1749319768260,-986.18471216,0.00019627,2]
[364936206,1749319768282,-986.18471216,0.00019627,2]
[364936207,1749319768304,-986.18471216,0.00019627,2]
[364936208,1749319768326,-986.18471216,0.00019627,2]
[364936209,1749319768348,-986.18471216,0.00019627,2]
[364936210,1749319768371,-500.0,0.00019627,2]
[364936211,1749319768394,-500.0,0.00019627,2]
[364936212,1749319768416,-500.0,0.00019627,2]
[364936213,1749319768440,-500.0,0.00019627,2]
[364936214,1749319768464,-630.04976464,0.00019627,2]
[364936215,1749319768487,-50000.0,0.00019628,2]
[364936216,1749319768509,-1200.0,0.00019628,2]
[364936217,1749319768531,-300.0,0.00019628,2]
[364936218,1749319768552,-440.0,0.00019628,2]
[364936219,1749319768574,-440.0,0.00019628,2]
[364936220,1749319768596,-440.0,0.00019628,2]
[364936221,1749319768617,-440.0,0.00019628,2]
[364936222,1749319768640,-3491.41,0.00019628,2]
[364936223,1749319768663,-440.0,0.00019628,2]
[364936224,1749319768686,-440.0,0.00019628,2]
[364936225,1749319768707,-440.0,0.00019629,2]
[364936226,1749319768729,-440.0,0.00019629,2]
[364936227,1749319768751,-440.0,0.00019629,2]
[364936228,1749319768774,-440.0,0.00019629,2]
[364936229,1749319768796,-440.0,0.00019629,2]
[364936230,1749319768820,-440.0,0.00019629,2]
[364936231,1749319768841,-488.25,0.00019629,2]
[364936232,1749319768863,-440.0,0.00019629,2]
[364936233,1749319768885,-440.0,0.00019629,2]
[364936234,1749319768906,-440.0,0.00019629,2]
[364936235,1749319768925,-541.35,0.00019629,2]
[364936236,1749319768946,-440.0,0.00019629,2]
[364936237,1749319768967,-440.0,0.00019629,2]
[364936238,1749319768987,-440.0,0.00019629,2]
[364936239,1749319769010,-440.0,0.00019629,2]
[364936240,1749319769033,-440.0,0.00019629,2]
[364936241,1749319769054,-440.0,0.00019629,2]
[364936242,1749319769076,-440.0,0.00019629,2]
[364936243,1749319769096,-440.0,0.00019629,2]
[364936244,1749319769118,-440.0,0.00019629,2]
[364936245,1749319769138,-440.0,0.00019629,2]
[364936246,1749319769159,-440.0,0.00019629,2]
[364936247,1749319769180,-440.0,0.00019629,2]
[364936248,1749319769201,-390.0,0.00019629,2]
[364936249,1749319769224,-440.0,0.00019629,2]
[364936250,1749319769245,-440.0,0.00019629,2]
[364936251,1749319769267,-440.0,0.00019629,2]
[364936252,1749319769287,-440.0,0.00019629,2]
[364936253,1749319769312,-440.0,0.00019629,2]
[364936254,1749319769334,-440.0,0.00019629,2]
[364936255,1749319769358,-500.0,0.00019629,2]
[364936256,1749319769381,-500.0,0.00019629,2]
[364936257,1749319769403,-500.0,0.00019629,2]
[364936258,1749319769425,-440.0,0.00019629,2]
[364936259,1749319769449,-440.0,0.00019629,2]
[364936260,1749319769475,-500.0,0.0001963,2]
[364936261,1749319769497,-440.0,0.00019631,2]
[364936262,1749319769519,-440.0,0.00019631,2]
[364936263,1749319769540,-440.0,0.00019631,2]
[364936264,1749319769561,-440.0,0.00019631,2]
[364936265,1749319769584,-430.0,0.00019631,2]
[364936266,1749319769607,-440.0,0.00019631,2]
[364936267,1749319769628,-430.84065571,0.00019631,2]
[364936268,1749319769649,-440.0,0.00019631,2]
[364936269,1749319769671,-440.0,0.00019631,2]
[364936270,1749319769693,-440.0,0.00019631,2]
[364936271,1749319769713,-440.0,0.00019631,2]
[364936272,1749319769734,-440.0,0.00019631,2]
[364936273,1749319769758,-440.0,0.00019631,2]
[364936274,1749319769782,-430.0,0.00019631,2]
[364936275,1749319769806,-440.0,0.00019631,2]
[364936276,1749319769829,-440.0,0.00019631,2]
[364936277,1749319769852,-440.0,0.00019631,2]
[364936278,1749319769872,-440.0,0.00019631,2]
[364936279,1749319769895,-440.0,0.00019631,2]
[364936280,1749319769916,-440.0,0.00019631,2]
[364936281,1749319769938,-457.39,0.00019631,2]
[364936282,1749319769961,-175.09951362,0.00019631,2]
[364936283,1749319769983,-523.3,0.00019631,2]
[364936284,1749319770006,-440.0,0.00019631,2]
[364936285,1749319770028,-440.0,0.00019631,2]
[364936286,1749319770050,-440.0,0.00019631,2]
[364936287,1749319770072,-440.0,0.00019631,2]
[364936288,1749319770095,-440.0,0.00019631,2]
[364936289,1749319770117,-440.0,0.00019631,2]
[364936290,1749319770140,-440.0,0.00019631,2]
[364936291,1749319770161,-440.0,0.00019631,2]
[364936292,1749319770184,-440.0,0.00019631,2]
[364936293,1749319770206,-440.0,0.00019631,2]
[364936294,1749319770228,-440.0,0.00019631,2]
[364936295,1749319770252,-440.0,0.00019631,2]
[364936296,1749319770272,-440.0,0.00019631,2]
[364936297,1749319770293,-440.0,0.00019631,2]
[364936298,1749319770317,-440.0,0.00019631,2]
[364936299,1749319770338,-440.0,0.00019631,2]
[364936300,1749319770360,-440.0,0.00019631,2]
[364936301,1749319770383,-728.27,0.00019631,2]
[364936302,1749319770407,-500.0,0.00019633,2]
[364936303,1749319770429,-270.76515888,0.00019803,2]
[364936304,1749319770451,-581.77084968,0.00019808,2]
[364936325,1749319832022,-366.49202126,0.00019527,2]
[364936327,1749319832033,-16000.0,0.00019618,2]
[364936329,1749319832043,-373.38724978,0.00019626,2]
[364936331,1749319832052,-440.0,0.00019626,2]
[364936333,1749319832062,-1200.0,0.00019627,2]
[364936335,1749319832072,-440.0,0.00019628,2]
[364936337,1749319832083,-440.0,0.00019628,2]
[364936339,1749319832093,-440.0,0.00019628,2]
[364936341,1749319832104,-440.0,0.00019628,2]
[364936342,1749319832114,-300.0,0.00019628,2]
[364936343,1749319832124,-300.0,0.00019628,2]
[364936344,1749319832134,-430.0,0.00019628,2]
[364936345,1749319832143,-430.0,0.00019628,2]
[364936346,1749319832153,-440.0,0.00019628,2]
[364936347,1749319832163,-440.0,0.00019628,2]
[364936348,1749319832173,-440.0,0.00019629,2]
[364936349,1749319832182,-440.0,0.00019629,2]
[364936350,1749319832192,-440.0,0.00019629,2]
[364936351,1749319832202,-440.0,0.00019629,2]
[364936352,1749319832211,-440.0,0.00019629,2]
[364936353,1749319832221,-440.0,0.00019629,2]
[364936354,1749319832231,-440.0,0.00019629,2]
[364936355,1749319832241,-440.0,0.00019629,2]
[364936356,1749319832256,-440.0,0.00019629,2]
[364936357,1749319832265,-506.38421765,0.00019629,2]
[364936358,1749319832276,-17861.79758177,0.00019631,2]
[364936359,1749319832378,-5225.0,0.00019631,2]
[364936360,1749319832390,-26913.20241823,0.00019631,2]
[364936361,1749319832400,-491.37,0.00019631,2]
[364936362,1749319832409,-440.0,0.00019631,2]
[364936363,1749319832419,-440.0,0.00019631,2]
[364936364,1749319832428,-155.0,0.00019808,2]
[364936365,1749319832438,-311.65026402,0.00019808,2]
[364936366,1749319832448,-458.23,0.00019902,2]
[364936367,1749319832459,-440.0,0.00019902,2]
[364936368,1749319832470,-440.0,0.00019902,2]
[364936369,1749319832479,-3491.41,0.00019902,2]
[364936370,1749319832489,-440.0,0.00019902,2]
[364936371,1749319832499,-440.0,0.00019902,2]
[364936372,1749319832508,-440.0,0.00019902,2]
[364936373,1749319832519,-440.0,0.00019902,2]
[364936374,1749319832530,-440.0,0.00019902,2]
[364936375,1749319832540,-440.0,0.00019902,2]
[364936376,1749319832550,-440.0,0.00019903,2]
[364936377,1749319832700,-440.0,0.00019903,2]
[364936378,1749319832712,-440.0,0.00019903,2]
[364936379,1749319832722,-440.0,0.00019903,2]
[364936380,1749319832732,-440.0,0.00019903,2]
[364936381,1749319832742,-440.0,0.00019903,2]
[364936382,1749319832752,-440.0,0.00019903,2]
[364936383,1749319832762,-440.0,0.00019903,2]
[364936384,1749319832772,-440.0,0.00019903,2]
[364936385,1749319832783,-430.0,0.00019903,2]
[364936386,1749319832792,-523.71,0.00019903,2]
[364936387,1749319832802,-440.0,0.00019903,2]
[364936388,1749319832818,-440.0,0.00019903,2]
[364936389,1749319832828,-565.13,0.00019903,2]
[364936390,1749319832838,-500.0,0.00019903,2]
[364936391,1749319832848,-500.0,0.00019904,2]
[364936392,1749319832859,-440.0,0.00019905,2]
[364936393,1749319832869,-440.0,0.00019905,2]
[364936394,1749319832879,-440.0,0.00019905,2]
[364936395,1749319832890,-430.0,0.00019905,2]
[364936396,1749319832900,-393.75,0.00019905,2]
[364936397,1749319832910,-440.0,0.00019905,2]
[364936398,1749319832920,-440.0,0.00019905,2]
[364936399,1749319832930,-440.0,0.00019905,2]
[364936400,1749319832940,-440.0,0.00019905,2]
[364936401,1749319832950,-440.0,0.00019905,2]
[364936402,1749319832960,-440.0,0.00019905,2]
[364936403,1749319832971,-440.0,0.00019905,2]
[364936404,1749319832981,-440.0,0.00019905,2]
[364936405,1749319832991,-440.0,0.00019905,2]
[364936406,1749319833000,-440.0,0.00019905,2]
[364936407,1749319833010,-440.0,0.00019905,2]
[364936408,1749319833020,-440.0,0.00019905,2]
[364936409,1749319833032,-728.27,0.00019905,2]
[364936410,1749319833042,-500.0,0.00019907,2]
[364936411,1749319833053,-500.0,0.00019985,2]
[364936412,1749319833064,-1544.1524475,0.00020011,2]
[364936413,1749319833074,-500.0,0.000201,2]
[364936414,1749319833085,-440.0,0.00020176,2]
[364936415,1749319833095,-3491.41,0.00020176,2]
[364936416,1749319833106,-440.0,0.00020176,2]
[364936417,1749319833123,-440.0,0.00020176,2]
[364936418,1749319833133,-440.0,0.00020176,2]
[364936419,1749319833145,-440.0,0.00020176,2]
[364936420,1749319833155,-440.0,0.00020176,2]
[364936421,1749319833166,-440.0,0.00020177,2]
[364936422,1749319833178,-440.0,0.00020177,2]
[364936423,1749319833189,-440.0,0.00020177,2]
[364936424,1749319833199,-440.0,0.00020177,2]
[364936425,1749319833209,-440.0,0.00020177,2]
[364936426,1749319833219,-440.0,0.00020177,2]
[364936427,1749319833229,-277.71,0.00020177,2]
[364936428,1749319833239,-471.25,0.00020177,2]
[364936429,1749319833248,-440.0,0.00020179,2]
[364936430,1749319833259,-440.0,0.00020179,2]
[364936431,1749319833270,-440.0,0.00020179,2]
[364936432,1749319833281,-440.0,0.00020179,2]
[364936433,1749319833291,-440.0,0.00020179,2]
[364936434,1749319833301,-440.0,0.00020179,2]
[364936435,1749319833311,-440.0,0.00020179,2]
[364936436,1749319833322,-440.0,0.00020179,2]
[364936437,1749319833332,-440.0,0.00020179,2]
[364936438,1749319833343,-440.0,0.00020179,2]
[364936439,1749319833353,-440.0,0.00020179,2]
[364936440,1749319833364,-440.0,0.00020179,2]
[364936441,1749319833374,-728.27,0.00020179,2]
[364936442,1749319833384,-168.21,0.00020243,2]
[364936443,1749319833395,-366.49202124,0.0002025,2]
[364936444,1749319833406,-440.0,0.0002045,2]
[364936445,1749319833416,-3491.41,0.0002045,2]
[364936446,1749319833425,-440.0,0.0002045,2]
[364936447,1749319833436,-440.0,0.0002045,2]
[364936448,1749319833446,-440.0,0.0002045,2]
[364936449,1749319833458,-440.0,0.0002045,2]
[364936450,1749319833468,-440.0,0.0002045,2]
[364936451,1749319833479,-584.6,0.00020451,2]
[364936452,1749319833489,-440.0,0.00020451,2]
[364936453,1749319833499,-449.0,0.00020451,2]
[364936454,1749319833508,-440.0,0.00020451,2]
[364936455,1749319833519,-440.0,0.00020451,2]
[364936456,1749319833531,-500.0,0.00020452,2]
[364936457,1749319833542,-440.0,0.00020453,2]
[364936458,1749319833553,-440.0,0.00020453,2]
[364936459,1749319833564,-440.0,0.00020453,2]
[364936460,1749319833574,-395.17856179,0.00020453,2]
[364936461,1749319833584,-440.0,0.00020453,2]
[364936462,1749319833594,-440.0,0.00020453,2]
[364936463,1749319833604,-440.0,0.00020453,2]
[364936464,1749319833615,-440.0,0.00020453,2]
[364936465,1749319833625,-440.0,0.00020453,2]
[364936466,1749319833635,-181.63,0.00020453,2]
[364936467,1749319833645,-440.0,0.00020453,2]
[364936468,1749319833655,-728.27,0.00020453,2]
[364936469,1749319833665,-500.0,0.0002056,2]
[364936470,1749319833676,-323.79,0.000207,2]
[364936471,1749319833686,-440.0,0.00020701,2]
[364936472,1749319833696,-440.0,0.00020701,2]
[364936473,1749319833707,-440.0,0.00020724,2]
[364936474,1749319833717,-3491.41,0.00020724,2]
[364936475,1749319833740,-440.0,0.00020724,2]
[364936476,1749319833751,-440.0,0.00020724,2]
[364936477,1749319833761,-440.0,0.00020724,2]
[364936478,1749319833772,-440.0,0.00020724,2]
[364936479,1749319833783,-440.0,0.00020724,2]
[364936480,1749319833793,-440.0,0.00020725,2]
[364936481,1749319833804,-253.53408432,0.00020725,2]
[364936482,1749319833816,-440.0,0.00020725,2]
[364936483,1749319833827,-312.48,0.00020727,2]
[364936484,1749319833838,-440.0,0.00020727,2]
[364936485,1749319833848,-477.5,0.00020727,2]
[364936486,1749319833859,-440.0,0.00020727,2]
[364936487,1749319833870,-440.0,0.00020727,2]
[364936488,1749319833880,-440.0,0.00020727,2]
[364936489,1749319833891,-440.0,0.00020727,2]
[364936490,1749319833903,-413.8115949,0.00020727,2]
[364936491,1749319833915,-440.0,0.00020727,2]
[364936492,1749319833926,-728.27,0.00020727,2]
[364936493,1749319833938,-3511.0,0.00020764,2]
[364936494,1749319833948,-203.67139977,0.00020772,2]
[364936495,1749319833958,-440.0,0.0002079,2]
[364936496,1749319833969,-206.037986,0.0002079,2]
[364936497,1749319833979,-388.43279162,0.00020855,2]
[364936498,1749319833990,-834.52263295,0.00020897,2]
[364936499,1749319834000,-411.49134792,0.000209,4]
[364936500,1749319834011,-229.56495552,0.00020927,2]
[364936501,1749319834022,-423.90693687,0.00020927,2]
[364936502,1749319834033,-160.0,0.00020927,2]
[364936503,1749319834044,-213.01382694,0.00020927,2]
[364936504,1749319834055,-160.0,0.00020927,2]
[364936505,1749319834066,-160.0,0.00020927,2]
[364936506,1749319834077,-842.5625,0.00020927,2]
[364936507,1749319834087,-160.0,0.00020927,2]
[364936508,1749319834098,-500.0,0.00020955,2]
[364936509,1749319834109,-366.49202124,0.00020973,2]
[364936510,1749319834120,-184.91084572,0.00020975,2]
[364936511,1749319834131,-440.0,0.00020998,2]
[364936512,1749319834142,-3491.41,0.00020998,2]
[364936513,1749319834153,-440.0,0.00020998,2]
[364936514,1749319834166,-440.0,0.00020998,2]
[364936515,1749319834177,-440.0,0.00020998,2]
[364936516,1749319834188,-440.0,0.00020998,2]
[364936517,1749319834199,-440.0,0.00020998,2]
[364936518,1749319834210,-440.0,0.00020999,2]
[364936519,1749319834221,-315.64,0.00020999,2]
[364936520,1749319834232,-390.62946461,0.00021001,2]
[364936521,1749319834243,-440.0,0.00021001,2]
[364936522,1749319834254,-440.0,0.00021001,2]
[364936523,1749319834265,-440.0,0.00021001,2]
[364936524,1749319834275,-440.0,0.00021001,2]
[364936525,1749319834288,-440.0,0.00021001,2]
[364936526,1749319834298,-728.27,0.00021001,2]
[364936527,1749319834309,-411.49134782,0.00021038,4]
[364936528,1749319834319,-411.49134782,0.00021176,4]
[364936529,1749319834330,-440.0,0.00021272,2]
[364936530,1749319834341,-3491.41,0.00021272,2]
[364936531,1749319834352,-440.0,0.00021272,2]
[364936532,1749319834363,-440.0,0.00021272,2]
[364936533,1749319834374,-440.0,0.00021272,2]
[364936534,1749319834384,-440.0,0.00021272,2]
[364936535,1749319834395,-440.0,0.00021272,2]
[364936536,1749319834405,-440.0,0.00021273,2]
[364936537,1749319834416,-440.0,0.00021275,2]
[364936538,1749319834426,-576.88,0.00021275,2]
[364936539,1749319834437,-475.12,0.00021275,2]
[364936540,1749319834447,-440.0,0.00021275,2]
[364936541,1749319834460,-440.0,0.00021275,2]
[364936542,1749319834470,-728.27,0.00021275,2]
[364936543,1749319834480,-411.49134782,0.00021314,5]
[364936544,1749319834490,-500.0,0.00021341,2]
[364936545,1749319834500,-500.0,0.00021368,2]
[364936546,1749319834510,-500.0,0.00021396,2]
[364936547,1749319834519,-411.49134782,0.00021452,5]
[364936548,1749319834531,-1457.0,0.00021483,2]
[364936549,1749319834541,-500.0,0.00021503,2]
[364936550,1749319834551,-440.0,0.00021546,2]
[364936551,1749319834560,-3491.41,0.00021546,2]
[364936552,1749319834569,-440.0,0.00021546,2]
[364936553,1749319834580,-440.0,0.00021546,2]
[364936554,1749319834590,-440.0,0.00021546,2]
[364936555,1749319834600,-440.0,0.00021546,2]
[364936556,1749319834610,-440.0,0.00021546,2]
[364936557,1749319834619,-344.07,0.00021547,2]
[364936558,1749319834629,-410.7,0.00021549,2]
[364936559,1749319834639,-282.78,0.00021549,2]
[364936560,1749319834649,-440.0,0.00021549,2]
[364936561,1749319834660,-728.27,0.00021549,2]
[364936562,1749319834670,-411.49134782,0.0002159,5]
[364936563,1749319834679,-366.49202124,0.00021696,2]
[364936564,1749319834689,-411.49134782,0.00021728,5]
[364936565,1749319834705,-856.8,0.00021776,2]
[364936566,1749319834715,-500.0,0.00021789,2]
[364936567,1749319834725,-440.0,0.0002182,2]
[364936568,1749319834735,-3491.41,0.0002182,2]
[364936569,1749319834745,-440.0,0.0002182,2]
[364936570,1749319834755,-440.0,0.0002182,2]
[364936571,1749319834764,-440.0,0.0002182,2]
[364936572,1749319834774,-440.0,0.0002182,2]
[364936573,1749319834784,-440.0,0.0002182,2]
[364936574,1749319834794,-440.0,0.00021823,2]
[364936575,1749319834804,-728.27,0.00021823,2]
[364936576,1749319834816,-411.49134782,0.00021866,6]
[364936577,1749319834827,-3000.0,0.000219,2]
[364936578,1749319834838,-3000.0,0.0002191,2]
[364936579,1749319834848,-500.0,0.00021917,2]
[364936580,1749319834859,-3000.0,0.0002192,2]
[364936581,1749319834869,-1192.22843941,0.0002193,2]
[364936589,1749319837992,-220.23806959,0.00019626,2]
[364936590,1749319838002,-317.30149641,0.00019626,2]
[364936591,1749319838013,-440.0,0.00019626,2]
[364936592,1749319838023,-1807.77156059,0.0002193,2]
[364936593,1749319838035,-3000.0,0.0002194,2]
[364936594,1749319838045,-3000.0,0.0002195,2]
[364936595,1749319838055,-3000.0,0.0002196,2]
[364936596,1749319838065,-3000.0,0.0002197,2]
[364936597,1749319838076,-3000.0,0.0002198,2]
[364936598,1749319838086,-3000.0,0.0002199,2]
[364936599,1749319838096,-8170.14361326,0.00022,2]
[364936600,1749319838108,-2592.21279071,0.00022,2]
[364936601,1749319838118,-3000.0,0.00022,2]
[364936602,1749319838129,-71044.93,0.00022,7]
[364936603,1749319838139,-744.59,0.00022,7]
[364936604,1749319838148,-174.0,0.00022,2]
[364936605,1749319838158,-411.49134782,0.00022003,6]
[364936606,1749319838170,-3000.0,0.0002201,2]
[364936607,1749319838187,-3000.0,0.0002202,2]
[364936608,1749319838196,-3000.0,0.0002203,2]
[364936609,1749319838206,-3393.010677,0.0002204,2]
[364936610,1749319838216,-440.0,0.00022094,2]
[364936611,1749319838227,-3491.41,0.00022094,2]
[364936612,1749319838240,-440.0,0.00022094,2]
[364936613,1749319838250,-440.0,0.00022094,2]
[364936614,1749319838260,-440.0,0.00022094,2]
[364936615,1749319838275,-440.0,0.00022094,2]
[364936616,1749319838286,-440.0,0.00022094,2]
[364936617,1749319838296,-440.0,0.00022097,2]
[364936618,1749319838307,-728.27,0.00022097,2]
[364936619,1749319838317,-323.79,0.000221,7]
[364936620,1749319838327,-411.49134782,0.00022141,6]
[364936621,1749319838338,-411.49134782,0.00022279,6]
[364936622,1749319838347,-440.0,0.00022368,2]
[364936623,1749319838357,-3491.41,0.00022368,2]
[364936624,1749319838367,-440.0,0.00022368,2]
[364936625,1749319838377,-447.79,0.00022368,2]
[364936626,1749319838387,-440.0,0.00022368,2]
[364936627,1749319838397,-440.0,0.00022368,2]
[364936628,1749319838406,-440.0,0.00022371,2]
[364936629,1749319838416,-728.27,0.00022371,2]
[364936630,1749319838427,-411.49134782,0.00022417,7]
[364936631,1749319838436,-366.49202124,0.00022418,2]
[364936632,1749319838446,-411.49134782,0.00022555,7]
[364936633,1749319838456,-440.0,0.00022642,2]
[364936634,1749319838466,-3491.41,0.00022642,2]
[364936635,1749319838476,-440.0,0.00022642,2]
[364936636,1749319838486,-156.5248734,0.00022642,2]
[364936637,1749319838496,-440.0,0.00022642,2]
[364936638,1749319838506,-440.0,0.00022645,2]
[364936639,1749319838516,-728.27,0.00022645,2]
[364936640,1749319838526,-411.49134782,0.00022693,7]
[364936641,1749319838536,-34822.3,0.000227,2]
[364936642,1749319838546,-207.4,0.00022815,2]
[364936643,1749319838556,-411.49134782,0.00022831,8]
[364936644,1749319838565,-2623.12690985,0.00022916,2]
[364936645,1749319838575,-440.0,0.00022916,2]